bitfinex-derivatives/quotes_ETHF0:USTF0_20241023
["timestamp","ask_amount","ask_price","bid_price","bid_amount"]
[1729649441035,0.7896,2622.3,2622.2,0.34341]
[1729649441634,0.7896,2622.3,2621.9,0.4141]
[1729649441829,0.3434,2622.3,2622.2,0.34341]
[1729649442327,0.3434,2622.3,2622.2,1.37]
[1729649442530,3.2078,2622.4,2622.2,1.37]
[1729649442733,3.2078,2622.4,2622.3,1.71339]
[1729649443427,3.55118,2622.4,2622.3,1.71339]
[1729649444029,3.2078,2622.4,2622.3,1.71339]
[1729649445137,1.71338,2622.5,2622.3,1.37]
[1729649445336,1.71338,2622.5,2622.4,0.34338]
[1729649445636,0.34338,2622.4,2622.3,1.71339]
[1729649445834,4.5778,2622.5,2622.4,0.34338]
[1729649445835,4.92117,2622.5,2622.4,0.34338]
[1729649446434,2.53586,2622.6,2622.3,1.37]
[1729649446639,0.34337,2622.5,2622.4,0.34337]
[1729649446839,0.34337,2622.5,2622.4,0.73377]
[1729649447037,1.71337,2622.5,2622.4,0.3904]
[1729649447735,1.71337,2622.5,2622.4,0.73378]
[1729649457144,1.37,2622.5,2622.4,0.73378]
[1729649457750,1.71337,2622.5,2622.4,0.73378]
[1729649462654,1.71337,2622.5,2622.4,0.3904]
[1729649464255,1.37,2622.5,2622.3,1.71338]
[1729649464557,0.34338,2622.4,2622.3,1.71338]
[1729649469266,1.71337,2622.5,2622.4,0.34338]
[1729649470275,0.34338,2622.4,2622.3,1.71338]
[1729649471176,1.71338,2622.5,2622.4,0.34338]
[1729649476375,0.34338,2622.4,2622.3,1.71339]
[1729649479185,0.34338,2622.5,2622.4,0.34337]
[1729649480383,0.34338,2622.4,2622.3,1.71338]
[1729649485185,0.34338,2622.4,2622.3,1.71339]
[1729649494800,0.34342,2622.1,2622.0,0.99295907]
[1729649494978,0.34345,2621.9,2621.8,3.55126]
[1729649495179,1.71345,2621.9,2621.8,3.55126]
[1729649495584,2.11905,2621.9,2621.8,3.55126]
[1729649495791,2.11905,2621.9,2621.8,3.2078]
[1729649497680,2.11905,2621.9,2621.7,1.71346]
[1729649497681,0.34346,2621.8,2621.7,1.71346]
[1729649498481,1.7756,2621.9,2621.8,0.34346]
[1729649498482,2.11905,2621.9,2621.8,0.34346]
[1729649498686,0.74905,2621.9,2621.8,1.71346]
[1729649498987,0.74905,2621.9,2621.8,1.37]
[1729649500387,0.74905,2621.9,2621.8,1.71346]
[1729649503889,0.34341,2622.2,2622.1,0.34341]
[1729649504094,0.34341,2622.2,2622.1,1.37]
[1729649504990,0.34341,2622.2,2622.1,1.71342]
[1729649506301,1.7663,2622.4,2622.2,0.34341]
[1729649506302,0.3434,2622.3,2622.2,0.34341]
[1729649506594,0.3434,2622.3,2622.2,1.71341]
[1729649506991,0.73969,2622.4,2622.3,0.34339]
[1729649507192,0.73969,2622.4,2622.3,1.71339]
[1729649507389,0.3963,2622.4,2622.3,1.71339]
[1729649510798,0.73968,2622.4,2622.3,1.71339]
[1729649512706,0.3963,2622.4,2622.3,1.71339]
[1729649513393,0.73968,2622.4,2622.3,1.71339]
[1729649515299,0.3963,2622.4,2622.3,1.71339]
[1729649517701,0.73968,2622.4,2622.3,1.71339]
[1729649518002,0.3963,2622.4,2622.3,1.71339]
[1729649519612,0.73968,2622.4,2622.3,1.71339]
[1729649519810,0.3963,2622.4,2622.3,1.71339]
[1729649520406,0.73968,2622.4,2622.3,1.71339]
[1729649521707,0.3963,2622.4,2622.3,1.71339]
[1729649522400,0.73968,2622.4,2622.3,1.71339]
[1729649522600,0.3963,2622.4,2622.3,1.71339]
[1729649523399,0.73968,2622.4,2622.3,1.71339]
[1729649523803,0.3963,2622.4,2622.3,1.71339]
[1729649524405,0.73968,2622.4,2622.3,1.71339]
[1729649524605,0.3963,2622.4,2622.3,1.71339]
[1729649525308,0.73968,2622.4,2622.3,1.71339]
[1729649526701,0.3963,2622.4,2622.3,1.71339]
[1729649528306,0.3963,2622.4,2622.2,0.3907]
[1729649528307,1.7663,2622.4,2622.2,0.3907]
[1729649528613,1.71339,2622.3,2622.2,0.3434]
[1729649528913,0.34339,2622.3,2622.2,0.3434]
[1729649529411,0.73969,2622.4,2622.3,0.34339]
[1729649529615,0.3963,2622.4,2622.3,1.71339]
[1729649529913,0.73968,2622.4,2622.3,1.71339]
[1729649531305,0.3963,2622.4,2622.3,1.71339]
[1729649531499,3.2078,2622.8,2622.3,1.37]
[1729649531500,1.71336,2622.6,2622.3,1.37]
[1729649531704,1.18145,2622.7,2622.6,0.34335]
[1729649532110,0.8381,2622.7,2622.6,1.71335]
[1729649532501,3.2078,2622.8,2622.7,0.34334]
[1729649532709,0.34329,2623.1,2623.0,0.34329]
[1729649533003,2.1813,2623.2,2623.1,0.34329]
[1729649533004,0.8113,2623.2,2623.1,0.34329]
[1729649533209,0.8113,2623.2,2623.1,1.71329]
[1729649533515,0.34323,2623.6,2623.1,1.37]
[1729649533705,0.786,2623.5,2623.4,3.55105]
[1729649533900,0.786,2623.5,2623.2,0.76727]
[1729649533901,0.34326,2623.3,2623.2,0.76727]
[1729649534115,1.37,2623.4,2623.2,1.71327]
[1729649534311,1.71326,2623.4,2623.2,1.71327]
[1729649534609,1.71326,2623.4,2623.3,1.37]
[1729649534812,0.34326,2623.4,2623.3,1.37]
[1729649535515,8.3898,2623.4,2622.4,0.9997952]
[1729649535818,1.37,2622.8,2622.7,0.34334]
[1729649536004,1.37,2623.0,2622.8,1.71332]
[1729649536206,0.3991,2622.9,2622.8,1.71332]
[1729649537911,3.2078,2623.4,2622.8,1.7722]
[1729649538208,3.2078,2623.4,2623.0,3.2078]
[1729649538399,0.388,2623.7,2623.0,3.2078]
[1729649538603,0.388,2623.7,2623.6,0.34322]
[1729649539508,0.388,2623.7,2623.6,1.71322]
[1729649539811,0.73121,2623.7,2623.6,1.37]
[1729649540116,2.10121,2623.7,2623.6,1.37]
[1729649540716,0.388,2623.7,2623.6,1.71322]
[1729649541008,0.388,2623.7,2623.6,4.92102]
[1729649541903,0.388,2623.7,2623.6,4.5778]
[1729649542211,0.388,2623.7,2623.6,1.71322]
[1729649544620,0.73121,2623.7,2623.6,1.37]
[1729649544915,0.73121,2623.7,2623.6,1.71322]
[1729649547010,0.388,2623.7,2623.6,1.71322]
[1729649547514,0.73121,2623.7,2623.6,1.71322]
[1729649548113,0.388,2623.7,2623.6,1.71322]
[1729649548823,0.779,2623.7,2623.6,1.71322]
[1729649549217,1.12221,2623.7,2623.6,1.71322]
[1729649550818,1.12221,2623.7,2623.6,1.37]
[1729649551320,1.12221,2623.7,2623.6,1.71322]
[1729649556122,0.779,2623.7,2623.6,1.71322]
[1729649556515,0.3432,2623.8,2623.6,1.37]
[1729649556716,0.3432,2623.8,2623.7,1.71321]
[1729649557117,1.7132,2623.9,2623.7,1.71321]
[1729649557524,1.37,2623.9,2623.7,1.71321]
[1729649557714,0.3432,2623.8,2623.7,1.71321]
[1729649560820,1.71319,2623.9,2623.7,1.37]
[1729649561016,1.71319,2623.9,2623.8,1.37]
[1729649561221,1.71319,2623.9,2623.8,1.7893]
[1729649573030,1.71319,2623.9,2623.8,1.37]
[1729649580339,1.37,2623.9,2623.6,0.4123]
[1729649580536,0.8418,2624.0,2623.6,0.75552]
[1729649580736,1.71321,2623.8,2623.7,1.71321]
[1729649580932,0.34321,2623.8,2623.7,1.71321]
[1729649583146,1.71321,2623.8,2623.7,1.71321]
[1729649584436,1.71321,2623.8,2623.7,0.34321]
[1729649584744,1.37,2623.8,2623.6,1.7823]
[1729649584947,1.17901,2623.7,2623.6,2.12552]
[1729649585944,0.8358,2623.7,2623.6,2.12552]
[1729649587350,1.17901,2623.7,2623.6,2.12552]
[1729649590644,0.8358,2623.7,2623.6,2.12552]
[1729649592750,0.34321,2623.8,2623.6,1.7823]
[1729649592943,0.34321,2623.8,2623.7,1.71321]
[1729649594249,0.7597,2623.9,2623.8,0.3432]
[1729649594647,0.3432,2623.8,2623.7,1.7132]
[1729649596851,1.37,2623.8,2623.7,1.37]
[1729649597153,1.37,2623.8,2623.5,4.20386406]
[1729649597154,0.34322,2623.6,2623.5,3.2078]
[1729649597350,1.71322,2623.6,2623.5,3.2078]
[1729649597752,1.71322,2623.6,2623.5,4.5778]
[1729649599257,1.71322,2623.6,2623.5,3.2078]
[1729649599655,1.71322,2623.6,2623.5,4.5778]
[1729649600258,1.71322,2623.6,2623.5,1.71324]
[1729649602063,1.71322,2623.6,2623.5,1.37]
[1729649602261,1.37,2623.6,2623.4,1.71324]
[1729649602467,1.14704,2623.5,2623.4,1.71324]
[1729649604058,1.54214,2623.5,2623.4,1.71324]
[1729649604658,2.91214,2623.5,2623.4,1.71324]
[1729649606165,2.91214,2623.5,2623.4,1.37]
[1729649607560,2.91214,2623.5,2623.4,1.71325]
[1729649608362,0.34326,2623.4,2623.3,0.34326]
[1729649608572,0.34326,2623.3,2623.2,0.3939]
[1729649609067,0.34328,2623.2,2623.1,1.71328]
[1729649609273,0.74958,2623.2,2623.1,1.71328]
[1729649609570,0.74958,2623.2,2623.1,5.52528]
[1729649610265,0.74958,2623.2,2623.1,5.182]
[1729649610471,0.34329,2623.1,2623.0,0.4072]
[1729649610668,0.74649,2623.1,2623.0,1.7772]
[1729649610971,1.14149,2623.1,2623.0,1.7772]
[1729649612459,2.51149,2623.1,2622.9,1.71331]
[1729649612668,1.14149,2623.1,2623.0,1.37]
[1729649622668,1.14149,2623.1,2623.0,1.7133]
[1729649622872,1.14149,2623.1,2623.0,1.37]
[1729649626581,0.4032,2623.1,2623.0,1.7133]
[1729649626777,0.34327,2623.3,2623.2,0.34327]
[1729649626979,0.34327,2623.3,2623.2,1.71327]
[1729649628983,1.71327,2623.3,2623.2,1.71327]
[1729649631085,0.34327,2623.3,2623.2,1.71327]
[1729649637695,1.56416,2623.4,2623.3,0.34326]
[1729649637998,3.55104,2623.5,2623.4,0.34325]
[1729649638200,3.55104,2623.5,2623.4,1.71325]
[1729649639097,0.34324,2623.5,2623.4,1.71325]
[1729649639896,0.34324,2623.5,2623.4,1.37]
[1729649640095,0.34325,2623.4,2623.3,1.71325]
[1729649643703,1.37,2623.6,2623.3,1.71325]
[1729649643901,1.71322,2623.6,2623.5,1.37]
[1729649652306,1.71322,2623.6,2623.5,1.71324]
[1729649659112,1.71322,2623.6,2623.5,1.37]
[1729649659317,1.71322,2623.6,2623.5,1.71324]
[1729649669217,0.34322,2623.6,2623.5,1.71324]
[1729649686819,0.34322,2623.6,2623.5,0.34324]
[1729649688329,1.37,2623.6,2623.2,4.20386406]
[1729649688536,1.71326,2623.3,2623.2,3.2078]
[1729649690127,0.34328,2623.2,2623.1,2.66696924]
[1729649690330,1.13598,2623.2,2623.1,2.66696924]
[1729649690829,1.13598,2623.2,2623.1,5.34739]
[1729649691130,1.56288,2623.2,2623.1,5.34739]
[1729649693030,1.56288,2623.2,2623.1,2.13959]
[1729649693427,1.56288,2623.2,2623.1,5.34739]
[1729649694226,1.56288,2623.2,2623.1,4.5778]
[1729649694427,2.93288,2623.2,2623.1,3.2078]
[1729649698940,2.93288,2623.2,2623.1,3.55109]
[1729649699134,2.93288,2623.2,2623.1,3.2078]
[1729649699527,2.93288,2623.2,2623.1,3.55109]
[1729649699729,2.93288,2623.2,2623.1,3.2078]
[1729649700527,0.3433,2623.0,2622.9,10.0]
[1729649700726,1.7133,2623.0,2622.9,6.42280001]
[1729649700928,4.1561,2623.0,2622.9,6.42280001]
[1729649701123,4.1561,2623.0,2622.9,7.79280001]
[1729649701124,0.3433,2623.0,2622.9,7.79280001]
[1729649701529,2.5896,2623.2,2622.9,8.21820001]
[1729649701735,1.2196,2623.2,2623.1,1.71329]
[1729649702634,1.56288,2623.2,2623.1,1.71329]
[1729649702935,1.2196,2623.2,2623.1,1.71329]
[1729649703436,0.4065,2623.2,2623.1,1.71329]
[1729649703826,0.4062,2623.4,2623.1,1.37]
[1729649704030,0.4062,2623.4,2623.2,1.71327]
[1729649704031,0.34326,2623.3,2623.2,1.71327]
[1729649704832,1.37,2623.3,2623.1,0.34328]
[1729649705035,0.34329,2623.1,2623.0,0.3433]
[1729649705333,1.71329,2623.1,2622.9,8.21820001]
[1729649705535,0.8094,2623.0,2622.9,8.56150001]
[1729649710028,0.8094,2623.0,2622.9,11.76930001]
[1729649710639,0.8094,2623.0,2622.9,10.39930001]
[1729649710843,0.8094,2623.0,2622.9,11.76930001]
[1729649712833,1.1527,2623.0,2622.9,11.76930001]
[1729649713235,0.8094,2623.0,2622.9,11.76930001]
[1729649713543,2.5227,2623.0,2622.9,9.63060001]
[1729649713847,2.5227,2623.0,2622.9,9.97392001]
[1729649714943,1.1527,2623.0,2622.9,11.34392001]
[1729649716831,1.1527,2623.0,2622.9,8.13612001]
[1729649717036,1.1527,2623.0,2622.9,11.34392001]
[1729649718636,0.8094,2623.0,2622.9,11.34392001]
[1729649719044,1.1527,2623.0,2622.9,11.34392001]
[1729649719544,1.1527,2623.0,2622.9,8.13612001]
[1729649719742,0.8094,2623.0,2622.9,11.34392001]
[1729649722945,0.4084,2623.2,2622.9,11.00060001]
[1729649723248,0.4084,2623.2,2623.1,1.71329]
[1729649725547,0.3929,2623.6,2623.1,5.182]
[1729649725742,0.3929,2623.6,2623.5,1.71324]
[1729649726544,0.7878,2623.8,2623.5,1.37]
[1729649726752,0.7878,2623.8,2623.7,1.71321]
[1729649727450,2.1578,2623.8,2623.7,1.71321]
[1729649727847,0.34323,2623.6,2623.5,0.34323]
[1729649728049,1.37,2623.6,2623.3,0.4258]
[1729649728252,1.37,2623.6,2623.2,3.55107]
[1729649728253,0.34326,2623.3,2623.2,3.55107]
[1729649728446,1.37,2623.3,2623.1,1.37]
[1729649728646,2.53118,2623.2,2623.1,0.34328]
[1729649728957,0.34329,2623.1,2623.0,2.9831]
[1729649729149,2.12379,2623.1,2623.0,0.4258]
[1729649729454,0.3433,2623.0,2622.9,9.63060001]
[1729649729656,1.7133,2623.0,2622.9,6.42280001]
[1729649729853,1.7133,2623.0,2622.9,7.79280001]
[1729649733350,1.7133,2623.0,2622.9,6.42280001]
[1729649738351,0.3433,2623.0,2622.9,7.79280001]
[1729649738559,2.12379,2623.1,2623.0,0.3433]
[1729649738755,1.37,2623.4,2623.3,0.34326]
[1729649738957,2.12356,2623.4,2623.3,1.71326]
[1729649739265,2.12356,2623.4,2623.3,0.34326]
[1729649739469,1.16846,2623.4,2623.3,1.71326]
[1729649739659,2.53846,2623.4,2623.3,1.71326]
[1729649740054,1.16846,2623.4,2623.3,1.71326]
[1729649740263,2.53846,2623.4,2623.3,1.71326]
[1729649741161,1.71326,2623.4,2623.3,1.37]
[1729649741567,1.71326,2623.4,2623.3,1.71326]
[1729649743561,1.71326,2623.4,2623.3,1.37]
[1729649744269,0.34326,2623.3,2623.2,1.71327]
[1729649744467,1.71326,2623.4,2623.3,0.34326]
[1729649744867,0.34326,2623.3,2623.2,1.71327]
[1729649745861,1.37,2623.4,2623.2,1.37]
[1729649746066,1.71326,2623.4,2623.3,0.34326]
[1729649746771,0.34326,2623.3,2623.2,1.71327]
[1729649749861,1.71326,2623.3,2623.2,1.71327]
[1729649750265,1.37,2623.4,2623.3,0.34326]
[1729649750459,0.4086,2623.5,2623.4,0.76385]
[1729649750673,0.8046,2623.6,2623.5,0.34324]
[1729649750674,2.1746,2623.6,2623.5,0.34324]
[1729649750969,2.51782,2623.6,2623.5,0.34324]
[1729649763375,2.1746,2623.6,2623.4,0.4206]
[1729649763569,0.34325,2623.4,2623.3,3.55106]
[1729649763777,1.71325,2623.4,2623.3,3.2078]
[1729649763977,0.34326,2623.3,2623.2,5.83641509]
[1729649764176,0.75336,2623.3,2623.2,6.44061509]
[1729649764672,0.4101,2623.3,2623.2,6.44061509]
[1729649765284,0.75336,2623.3,2623.2,6.44061509]
[1729649765976,0.75336,2623.3,2623.2,5.92007]
[1729649766176,2.12336,2623.3,2623.2,0.3948]
[1729649766582,0.4101,2623.3,2623.2,0.73808]
[1729649766877,0.4101,2623.3,2623.2,2.10808]
[1729649768374,0.4101,2623.3,2623.2,9.12788]
[1729649768569,2.52763,2623.6,2623.2,8.7846]
[1729649768774,2.52763,2623.6,2623.5,0.34324]
[1729649772078,2.52763,2623.6,2623.4,0.34324]
[1729649775492,2.52763,2623.6,2623.5,0.34324]
[1729649776489,2.52763,2623.6,2623.4,0.34324]
[1729649776988,2.52763,2623.6,2623.5,0.34324]
[1729649780082,1.15763,2623.6,2623.5,1.71324]
[1729649780383,0.8144,2623.6,2623.5,1.71324]
[1729649780992,1.15762,2623.6,2623.5,1.71324]
[1729649782887,0.4149,2623.6,2623.5,1.71324]
[1729649783091,0.7496,2623.8,2623.7,0.34321]
[1729649783092,0.4064,2623.8,2623.7,0.34321]
[1729649783390,0.3945,2623.9,2623.7,4.5778]
[1729649783594,0.3945,2623.9,2623.8,1.7132]
[1729649783804,0.3945,2623.9,2623.8,2.1231]
[1729649784389,0.73768,2623.9,2623.8,2.1231]
[1729649786893,1.7645,2623.9,2623.7,4.5778]
[1729649787195,2.1153,2623.8,2623.7,3.2078]
[1729649788288,2.1153,2623.8,2623.4,0.34324]
[1729649788289,0.34324,2623.6,2623.4,0.34324]
[1729649788486,1.7858,2623.5,2623.4,1.71324]
[1729649788693,2.52714,2623.5,2623.4,1.37]
[1729649788894,0.34326,2623.4,2623.3,0.34326]
[1729649789087,0.34326,2623.3,2623.2,5.30737]
[1729649789391,0.4116,2623.4,2623.2,4.9641]
[1729649789598,0.75485,2623.4,2623.3,1.71326]
[1729649791299,0.75485,2623.4,2623.2,4.5778]
[1729649791495,0.75485,2623.4,2623.3,1.37]
[1729649791690,0.75485,2623.4,2623.3,1.71326]
[1729649792798,0.75485,2623.4,2623.3,1.37]
[1729649792998,0.75485,2623.4,2623.3,1.71326]
[1729649793593,0.4116,2623.4,2623.3,1.71326]
[1729649793896,0.4116,2623.4,2623.3,2.13226]
[1729649795397,0.75485,2623.4,2623.3,2.13226]
[1729649795799,0.4116,2623.4,2623.3,2.13226]
[1729649797196,0.75485,2623.4,2623.3,1.71326]
[1729649797499,0.4116,2623.4,2623.3,1.71326]
[1729649803200,0.3981,2623.5,2623.4,0.34325]
[1729649803402,0.3981,2623.5,2623.4,1.71325]
[1729649803602,0.78,2623.8,2623.4,1.7782]
[1729649803903,0.75501,2623.7,2623.6,0.34322]
[1729649804507,0.4118,2623.7,2623.6,0.34322]
[1729649805103,0.75501,2623.7,2623.6,0.34322]
[1729649805704,0.4118,2623.7,2623.6,0.34322]
[1729649806305,0.75501,2623.7,2623.6,0.34322]
[1729649807208,0.4118,2623.7,2623.6,0.34322]
[1729649807805,0.75501,2623.7,2623.6,0.34322]
[1729649808202,2.15,2623.8,2623.5,1.7646]
[1729649808514,1.1232,2623.8,2623.7,1.71321]
[1729649808705,0.78,2623.8,2623.7,1.71321]
[1729649808908,0.3928,2623.8,2623.7,1.71321]
[1729649809307,0.34319,2623.9,2623.7,1.7634]
[1729649809618,0.74518,2624.0,2623.9,0.34318]
[1729649809805,0.74518,2624.0,2623.9,1.71318]
[1729649810004,0.402,2624.0,2623.9,1.71318]
[1729649810207,0.74517,2624.0,2623.9,1.71318]
[1729649810408,0.402,2624.0,2623.9,1.71318]
[1729649811906,0.7861,2624.1,2623.9,1.37]
[1729649812108,0.7861,2624.1,2624.0,1.71317]
[1729649812303,1.1765,2624.1,2624.0,1.71317]
[1729649814512,2.88966,2624.1,2624.0,1.71317]
[1729649814707,2.88966,2624.1,2624.0,0.34317]
[1729649816109,0.34317,2624.0,2623.8,1.37]
[1729649816410,1.37,2623.9,2623.8,1.71319]
[1729649818516,1.37,2623.9,2623.8,1.7132]
[1729649819115,1.37,2623.9,2623.8,4.921]
[1729649820120,1.37,2623.9,2623.8,1.7132]
[1729649820312,1.37,2623.9,2623.8,4.921]
[1729649820715,1.37,2623.9,2623.8,1.7132]
[1729649820913,1.37,2623.9,2623.8,4.921]
[1729649823419,2.88967,2624.1,2624.0,0.34317]
[1729649823622,2.88967,2624.1,2623.9,1.71317]
[1729649823816,2.88967,2624.1,2623.9,0.34317]
[1729649824215,1.71318,2624.0,2623.8,4.92099]
[1729649824423,1.37,2624.0,2623.9,0.34318]
[1729649825225,2.88967,2624.1,2623.9,0.34317]
[1729649827333,2.88967,2624.1,2623.9,0.34318]
[1729649828333,2.5465,2624.1,2623.8,4.5778]
[1729649828631,0.7766,2624.1,2624.0,1.71317]
[1729649829128,0.3862,2624.1,2624.0,1.71317]
[1729649829327,0.3862,2624.1,2624.0,2.11467]
[1729649829926,0.34315,2624.2,2624.1,0.34315]
[1729649830223,0.75294,2624.3,2624.2,0.34315]
[1729649832333,0.34315,2624.2,2624.1,1.71315]
[1729649833427,1.7798,2624.3,2624.2,0.34315]
[1729649833428,2.12294,2624.3,2624.2,0.34315]
[1729649835124,0.4098,2624.3,2624.2,1.71315]
[1729649835732,0.396,2624.4,2624.3,0.34313]
[1729649835929,0.7292,2624.6,2624.5,0.34311]
[1729649836237,0.7292,2624.6,2624.5,1.71311]
[1729649836624,0.3861,2624.6,2624.5,1.71311]
[1729649838136,0.421,2624.7,2624.6,0.34309]
[1729649838332,0.421,2624.7,2624.6,1.71309]
[1729649838526,0.76408,2624.7,2624.6,1.71309]
[1729649838726,0.421,2624.7,2624.6,1.71309]
[1729649839032,0.76408,2624.7,2624.6,1.71309]
[1729649840931,0.421,2624.7,2624.6,1.71309]
[1729649841932,0.76408,2624.7,2624.6,1.71309]
[1729649847238,0.76408,2624.7,2624.6,1.37]
[1729649848032,0.76408,2624.7,2624.6,1.71309]
[1729649851152,0.76408,2624.7,2624.6,1.37]
[1729649852655,2.13408,2624.7,2624.6,1.37]
[1729649853262,2.13408,2624.7,2624.6,1.71309]
[1729649853452,2.13408,2624.7,2624.6,1.37]
[1729649856860,2.13408,2624.7,2624.6,1.71309]
[1729649858661,0.76408,2624.7,2624.6,1.71309]
[1729649859151,2.13408,2624.7,2624.6,1.71309]
[1729649860751,2.13408,2624.7,2624.6,1.37]
[1729649866667,2.13408,2624.7,2624.6,1.71309]
[1729649877168,0.76408,2624.7,2624.6,1.71309]
[1729649878873,0.76408,2624.7,2624.6,1.37]
[1729649880073,0.76408,2624.7,2624.6,1.71309]
[1729649885075,0.421,2624.7,2624.5,3.5509]
[1729649885268,0.34309,2624.6,2624.5,3.5509]
[1729649885474,0.34309,2624.6,2624.5,4.9209]
[1729649888282,0.76409,2624.7,2624.6,0.34309]
[1729649888580,0.76409,2624.7,2624.6,1.71309]
[1729649888982,0.76409,2624.7,2624.6,1.37]
[1729649890082,0.76409,2624.7,2624.6,1.71309]
[1729649892184,0.421,2624.7,2624.5,4.5778]
[1729649892383,0.34309,2624.6,2624.5,4.9209]
[1729649892781,0.34309,2624.6,2624.5,1.7131]
[1729649893392,0.34309,2624.6,2624.5,1.37]
[1729649893883,0.34309,2624.6,2624.5,1.71311]
[1729649894795,0.34309,2624.6,2624.5,1.37]
[1729649894982,0.34309,2624.6,2624.5,1.71311]
[1729649898991,0.34312,2624.4,2624.3,3.2078]
[1729649899196,0.34316,2624.1,2624.0,1.37]
[1729649899896,0.34318,2623.9,2623.8,10.4596613]
[1729649900193,0.34318,2623.9,2623.8,11.8296613]
[1729649900396,0.34318,2623.9,2623.8,11.7500613]
[1729649900895,0.75138,2624.0,2623.8,11.7500613]
[1729649901191,0.75138,2624.0,2623.9,0.34318]
[1729649901390,0.75138,2624.0,2623.9,1.37]
[1729649901991,0.34318,2623.9,2623.8,3.2078]
[1729649902195,5.52438,2623.9,2623.8,3.2078]
[1729649902790,1.71318,2623.9,2623.8,4.5778]
[1729649903691,5.52438,2623.9,2623.8,4.5778]
[1729649903994,5.52438,2623.9,2623.8,3.2078]
[1729649904894,0.34322,2623.6,2623.5,3.2078]
[1729649905096,0.34322,2623.6,2623.5,4.5778]
[1729649905500,0.73462,2623.6,2623.5,4.5778]
[1729649906091,7.28662,2623.6,2623.5,3.2078]
[1729649906501,5.91662,2623.6,2623.5,3.2078]
[1729649906896,6.9434,2623.6,2623.4,17.96161]
[1729649907206,5.52524,2623.5,2623.4,17.54671]
[1729649908995,7.08156094,2623.5,2623.4,6.90745]
[1729649909201,0.3433,2623.0,2622.9,5.60841001]
[1729649909395,5.4228,2623.0,2621.9,1.1917]
[1729649909698,0.34339,2622.3,2622.2,2.2221275]
[1729649909896,1.71339,2622.3,2622.2,0.8521275]
[1729649911795,5.1836,2622.3,2621.9,2.5617]
[1729649911997,0.34343,2622.0,2621.9,2.5617]
[1729649912198,1.71343,2622.0,2621.9,1.1917]
[1729649912504,1.71343,2622.0,2621.9,1.6585275]
[1729649912694,1.71343,2622.0,2621.6,1.37]
[1729649912695,0.34348,2621.7,2621.6,1.37]
[1729649913004,0.34348,2621.7,2621.6,2.2221275]
[1729649913005,1.71347,2621.7,2621.6,2.2221275]
[1729649915007,0.34347,2621.8,2621.6,2.2221275]
[1729649915205,0.34347,2621.8,2621.7,1.37]
[1729649916104,1.71347,2621.8,2621.7,1.37]
[1729649917199,1.71347,2621.8,2621.7,2.2221275]
[1729649923811,0.34347,2621.8,2621.7,2.5655975]
[1729649924208,0.34347,2621.8,2621.7,2.2221275]
[1729649924713,0.34343,2622.0,2621.8,0.34346]
[1729649924915,0.34343,2622.0,2621.9,2.2221275]
[1729649926211,0.34343,2622.0,2621.9,2.6317275]
[1729649927010,1.71343,2622.0,2621.9,2.6317275]
[1729649927211,0.34343,2622.1,2621.9,2.9751675]
[1729649927406,1.71343,2622.1,2621.9,2.12304]
[1729649927718,1.71343,2622.1,2622.0,1.1955575]
[1729649928216,1.71343,2622.1,2622.0,1.6042575]
[1729649929309,0.75863195,2622.1,2622.0,1.6042575]
[1729649929516,1.37,2622.2,2622.0,2.9742575]
[1729649929715,0.34343,2622.1,2622.0,2.12213]
[1729649930108,0.34343,2622.1,2622.0,2.9742575]
[1729649930313,3.2078,2622.4,2622.1,0.34342]
[1729649930314,1.37,2622.3,2622.1,0.34342]
[1729649930518,0.34339,2622.3,2622.2,0.8521275]
[1729649931411,1.71339,2622.3,2622.2,0.8521275]
[1729649956736,0.34342,2622.1,2622.0,0.4087]
[1729649956938,1.71342,2622.1,2622.0,1.2608275]
[1729649957531,0.34342,2622.1,2622.0,0.8521275]
[1729649957730,1.71342,2622.1,2622.0,0.8521275]
[1729649959441,0.34346,2621.8,2621.7,0.4236]
[1729649959635,1.71346,2621.8,2621.7,0.4236]
[1729649959936,5.52786,2621.8,2621.7,0.4236]
[1729649960137,0.34349,2621.6,2621.5,0.4272]
[1729649960438,6.7938,2621.6,2620.5,4.55155004]
[1729649960628,0.34356,2621.0,2620.9,0.8521275]
[1729649960831,0.34358,2620.9,2620.8,1.2561275]
[1729649961556,3.55138,2620.9,2620.8,1.2561275]
[1729649961938,4.92138,2620.9,2620.8,1.2561275]
[1729649962434,8.73658,2620.9,2620.8,0.404]
[1729649962841,0.34365,2620.4,2620.2,0.34366]
[1729649963047,8.393,2620.9,2620.5,0.8521275]
[1729649963048,0.34362,2620.6,2620.5,0.8521275]
[1729649964043,1.71362,2620.6,2620.5,0.8521275]
[1729649964738,0.34363,2620.5,2620.4,0.4234]
[1729649965045,1.71363,2620.5,2620.4,1.2755275]
[1729649967445,0.34363,2620.5,2620.4,2.6455275]
[1729649967647,1.71363,2620.5,2620.4,1.2755275]
[1729649969640,0.34367,2620.2,2620.1,3.2078]
[1729649969841,0.34367,2620.2,2619.4,0.34377]
[1729649969842,0.34374,2619.7,2619.4,0.34377]
[1729649970144,0.34374,2619.7,2619.6,0.7170275]
[1729649971238,0.34373,2619.7,2619.6,0.7170275]
[1729649972242,3.2078,2619.9,2619.6,0.7170275]
[1729649972546,3.55152,2619.9,2619.8,0.3196275]
[1729649973136,3.2078,2619.9,2619.6,0.3974]